Cogmind - Beta 14 @@@ ROGUE MODE // 2024.10.06 @ 21:38:13 Player: polar Result: Escaped! Performance ------------- Evolutions (9) 4500 Regions Visited (24) 4800 Robots Destroyed (264) 1320 Value Destroyed (12627) 12627 Prototype IDs (56) 1120 Alien Tech Used (5) 1000 Bonus (14028) 14028 TOTAL SCORE: 39395 Bonus ------- High Alert Combat Kills 2210 Follower Combat Kills 5422 Forged Quantum Companion 1000 Registered with UFD 300 Met Imprinter 300 Met Zhirov 300 Built Enhanced Grunts 300 A7 Reached Mainframe 300 Met R17 at Cetus 500 Met R17 at Research 2000 Scanned by Researcher 500 Win 3000 Friendly Fire -2104 Cogmind --------- Core Integrity 801/1600 Matter 295/300 Energy 675/690 System Corruption 38% Temperature Cool (30) Movement Treading (173) Location To Epsilon Eridani Parts ------- > --- POWER (4) -------- Light Antimatter Reactor Light Particle Reactor Light Quantum Reactor > --- PROPULSION (5) --- Medium Treads Improved Heavy Siege Treads Improved Heavy Siege Treads > --- UTILITY (14) ----- Energy Well Enhanced Optical Array 0b10 Decoder Chip [Scout] Experimental Melee Analysis Suite Advanced Target Analyzer Experimental Weapon Shielding Layered Medium Armor Plating Graphene Brace Amulet of Y3-NDR > --- WEAPON (2) ------- Quantum Companion > --- INVENTORY (5) ---- Medium Treads Myomer Leg Guided Missile Launcher Peak State ------------ > --- POWER ------------ Light Quantum Reactor Light Quantum Reactor Light Quantum Reactor Light Quantum Reactor > --- PROPULSION ------- Biometal Medium Treads Improved Heavy Siege Treads Biometal Heavy Treads > --- UTILITY ---------- Large Storage Unit Enhanced Optical Array Advanced Signal Interpreter 0b10 Decoder Chip [Scout] Experimental Melee Analysis Suite Advanced Transmission Jammer Phase Armor Advanced Force Field Advanced Hacking Suite Advanced System Shield Experimental System Shield A0-MCA's Component Scanner Improved System Guard > --- WEAPON ----------- Quantum Companion > --- INVENTORY -------- Light Quantum Reactor Singularity Reactor Advanced Sensor Array Advanced Melee Analysis Suite Advanced Target Analyzer Advanced Target Analyzer Nanoactuators Amulet of Y3-NDR Dimensional Node Initializer Neutron Cannon Guided Missile Launcher Multitool [Rating: 205] Favorites ----------- Power Light Quantum Reactor Engine Subdweller Power Source Power Core Reinforced Fission Core Reactor Light Quantum Reactor Propulsion Light Treads Treads Light Treads Leg Myomer Leg Wheel Wheel Utility Large Storage Unit Device Advanced Sensor Array Storage Large Storage Unit Processor System Guard Hackware Advanced Hacking Suite Protection Enhanced Scrap Shield Artifact Phase Armor Weapon Companion Sword Energy Gun Overtuned Quantum Rifle Energy Cannon Subdweller Beam Cannon Ballistic Gun Assault Rifle Ballistic Cannon Slug Cannon Launcher Rocket Launcher Special Weapon Multitool Slashing Weapon Companion Sword Piercing Weapon CR-A16's Pointy Stick Build | -11 -10 -10 -10 -9 -9 -6 -6 -6 -6 -5 -5 -5 -5 -5 -4 -4 -4 -4 -4 -4 -3 -3 -2 -1 ------- Run | Yrd Mat Min Sub Rec Scr Fac Low Low Zio Pro Fac Upp Upp Zhi Pro Fac Ext Cet Arc Hub Res Qua Res Acc Slots Evolved 18 | . . . . . . 8 . . . . 2 . . . . 2 . . . . 2 . 2 2 Power 3 | . . . . . . . . . . . . . . . . 1 . . . . . . 2 . Propulsion 3 | . . . . . . 3 . . . . . . . . . . . . . . . . . . Utility 12 | . . . . . . 5 . . . . 2 . . . . 1 . . . . 2 . . 2 Weapon . | . . . . . . . . . . . . . . . . . . . . . . . . . Parts Attached 342 | 7 1 5 20 . 19 25 3 11 17 9 6 4 1 8 3 13 22 8 9 24 5 40 33 49 Power 51 | 1 . 4 7 . 1 3 . 1 . 2 . . . 2 . 3 . 2 . . . 7 7 11 Engine 13 | 1 . 4 7 . . 1 . . . . . . . . . . . . . . . . . . Core 7 | . . . . . 1 2 . 1 . 2 . . . 1 . . . . . . . . . . Reactor 31 | . . . . . . . . . . . . . . 1 . 3 . 2 . . . 7 7 11 Propulsion 62 | 2 . . 2 . 4 7 1 . 1 2 2 . . . . 3 5 2 2 8 1 6 5 9 Treads 25 | . . . 2 . 2 3 . . . . . . . . . . . . . . . 4 5 9 Leg 35 | . . . . . 2 4 1 . 1 2 2 . . . . 3 5 2 2 8 1 2 . . Wheel 2 | 2 . . . . . . . . . . . . . . . . . . . . . . . . Hover . | . . . . . . . . . . . . . . . . . . . . . . . . . Flight . | . . . . . . . . . . . . . . . . . . . . . . . . . Utility 168 | 2 1 . 5 . 6 15 1 6 13 1 3 3 1 6 2 5 11 4 4 10 4 25 17 23 Device 93 | 1 . . 3 . 2 5 . 5 5 1 1 1 . 4 2 2 8 2 2 8 2 16 11 12 Storage 14 | 1 1 . . . 4 1 . . . . . 2 . 1 . . 1 . . . . 1 . 2 Processor 24 | . . . . . . 7 . . 5 . 1 . . . . 1 . . . 1 1 2 2 4 Hackware 7 | . . . . . . . . . . . 1 . . . . 1 1 . . . 1 . 2 1 Protection 26 | . . . 2 . . 2 1 1 3 . . . 1 1 . 1 1 2 2 1 . 4 . 4 Artifact 4 | . . . . . . . . . . . . . . . . . . . . . . 2 2 . Weapon 61 | 2 . 1 6 . 8 . 1 4 3 4 1 1 . . 1 2 6 . 3 6 . 2 4 6 Energy Gun 1 | . . . . . 1 . . . . . . . . . . . . . . . . . . . Energy Cannon 15 | . . . 4 . . . . . . . . 1 . . 1 2 . . . 3 . 2 1 1 Ballistic Gun 5 | 2 . . . . 2 . . . . . . . . . . . . . 1 . . . . . Ballistic Cannon 1 | . . . 1 . . . . . . . . . . . . . . . . . . . . . Launcher 11 | . . 1 1 . . . 1 1 1 1 . . . . . . 2 . . . . . 1 2 Special Weapon 17 | . . . . . 4 . . 3 . . 1 . . . . . 2 . 2 3 . . 1 1 Impact Weapon . | . . . . . . . . . . . . . . . . . . . . . . . . . Slashing Weapon 10 | . . . . . 1 . . . 1 3 . . . . . . 2 . . . . . 1 2 Piercing Weapon 1 | . . . . . . . . . 1 . . . . . . . . . . . . . . . Special Melee Weapon . | . . . . . . . . . . . . . . . . . . . . . . . . . Unidentified Prototypes 32 | . . . 1 . 1 1 1 1 4 . 1 . . 4 . . 1 1 . 4 . 7 1 4 Corrupted Parts 4 | . . . . . . . . . . 2 . . . . . . . 1 . 1 . . . . System Corruption 21 | . . . . . . . . . . 13 . . . . . . . 7 . 1 . . . . Parts Lost 47 | . . . 1 . . 3 2 . . . . . . . . . . 1 1 1 1 5 4 28 Power 11 | . . . . . . . . . . . . . . . . . . 1 . . 1 1 1 7 Propulsion 11 | . . . . . . 1 2 . . . . . . . . . . . 1 . . 1 . 6 Utility 24 | . . . . . . 2 . . . . . . . . . . . . . 1 . 3 3 15 Weapon 1 | . . . 1 . . . . . . . . . . . . . . . . . . . . . Highest Loss Streak 10 | . . . 1 . . 2 2 . . . . . . . . . . 1 1 1 1 2 1 10 To Critical Strikes 2 | . . . . . . . . . . . . . . . . . . . . . . . . 2 Average Slot Usage (%) 84 | . 100 100 99 100 81 79 77 81 78 74 79 78 77 76 77 79 82 88 89 88 88 87 83 81 Engine 3 | . 14 14 13 14 5 . . . . . . . . . . . . . . . . . . . Core 2 | . . . . . 5 4 5 6 6 6 5 5 5 5 5 3 . . . . . . . . Reactor 3 | . . . . . . . . . . . . . . . . 6 10 9 10 10 7 8 16 13 Treads 13 | . . . 27 28 23 12 15 6 6 6 5 5 5 5 5 5 3 . . . . 5 13 13 Leg 10 | . . . . . 4 16 16 18 18 18 16 16 16 16 16 15 17 26 25 25 23 13 . . Device 10 | . 14 14 13 14 2 11 1 7 10 17 16 16 16 15 16 14 11 14 15 9 14 14 12 13 Storage 10 | . 14 14 14 14 20 5 5 6 6 6 5 5 5 5 5 5 5 5 5 5 4 4 4 7 Processor 8 | . . . . . . 18 22 20 12 6 11 11 11 11 11 10 10 10 10 14 19 19 19 19 Hackware 3 | . . . . . . . . . . . 4 5 5 5 5 10 13 10 10 5 8 9 6 6 Protection 2 | . . . . . . 2 4 4 5 6 5 5 5 4 5 4 4 5 3 9 4 4 . 2 Energy Cannon 2 | . . . 12 14 5 . . . . . . 1 . . . . . . . . . . . . Ballistic Cannon 2 | . . . 13 14 5 . . . . . . . . . . . . . . . . . . . Slashing Weapon 5 | . . . . . 8 5 5 6 5 5 5 5 5 5 5 5 4 5 5 5 4 4 3 3 Peak Build Rating 205 | 7 7 9 17 17 31 86 87 87 94 90 101 104 100 103 106 128 131 122 128 128 142 163 188 205 Average Rating 79 | 5 7 8 15 17 14 78 86 84 88 86 99 100 99 99 101 120 126 121 120 121 134 142 179 180 On Entrance 84 | . 7 7 9 17 17 31 85 79 87 90 87 99 99 100 101 106 127 119 122 126 123 126 155 188 Naked Turns . | . . . . . . . . . . . . . . . . . . . . . . . . . Heaviest Build 150 | 15 20 22 34 31 41 43 48 51 52 63 65 83 66 66 76 83 81 81 89 96 86 83 139 150 Greatest Support 185 | 26 26 26 40 40 40 90 90 90 90 80 65 80 80 80 80 100 115 115 125 137 137 165 185 185 Greatest Overweight (x) 1 | . . . . . 1 . . . 1 1 . 1 . . . 1 1 1 . . . 1 1 1 Average Overweight (x) . | . . . . . . . . . . . . . . . . . . . . . . . . . Largest Inventory Capacity 20 | 8 10 10 10 10 15 15 15 15 15 15 15 20 15 15 15 15 15 15 15 15 15 15 15 15 Average Capacity 13 | 7 9 10 10 10 10 15 15 15 15 15 15 15 15 15 15 15 15 15 15 15 15 15 15 13 Most Carried 15 | 5 7 10 10 10 15 15 15 15 15 15 15 15 15 15 15 15 15 15 15 15 15 15 15 15 Average Carried 11 | 2 6 9 9 10 7 14 14 14 14 14 14 14 15 14 14 14 14 14 14 14 14 14 14 12 Final Capacity 15 | 8 10 10 10 10 15 15 15 15 15 15 15 15 15 15 15 15 15 15 15 15 15 15 15 5 Final Carried 15 | 5 7 10 10 10 15 15 15 15 15 15 15 15 15 15 15 15 15 15 15 15 15 15 15 4 Class Distribution -------------------- 58% | Mutant 14% | Scavenger-Mutant 9% | Hacker-Mutant 6% | Generator-Mutant 3% | Scavenger-Assassin 3% | Commander-Mutant Dominant Class ---------------- Mutant | -10/Materials Mutant | -10/Mines Mutant | -10/Subcaves Mutant | -9/Recycling Mutant | -9/Scraptown Mutant | -6/Factory Mutant | -6/Lower Caves Scavenger-Mutant | -6/Lower Caves Mutant | -6/Zion Mutant | -5/Proximity Caves Scavenger-Mutant | -5/Factory Mutant | -5/Upper Caves Mutant | -5/Upper Caves Mutant | -5/Zhirov Mutant | -4/Proximity Caves Hacker-Mutant | -4/Factory Hacker-Mutant | -4/Extension Scavenger-Mutant | -4/Cetus Scavenger-Mutant | -4/Archives Scavenger-Mutant | -4/Hub_04(d) Scavenger-Assassin | -3/Research Scavenger-Assassin | -3/Quarantine Generator-Assassin | -2/Research Generator-Mutant | -1/Access Resources | -11 -10 -10 -10 -9 -9 -6 -6 -6 -6 -5 -5 -5 -5 -5 -4 -4 -4 -4 -4 -4 -3 -3 -2 -1 ----------- Run | Yrd Mat Min Sub Rec Scr Fac Low Low Zio Pro Fac Upp Upp Zhi Pro Fac Ext Cet Arc Hub Res Qua Res Acc Matter Collected 5889 | 208 43 302 404 6 775 391 40 140 180 140 70 50 10 80 40 130 545 75 390 265 50 395 418 742 Remotely . | . . . . . . . . . . . . . . . . . . . . . . . . . Salvage Created 16510 | 18 43 94 372 . 338 1000 784 194 196 235 103 26 85 283 95 623 1259 80 200 726 128 2407 2791 4430 Parts 804 | 3 3 7 22 . 35 58 22 10 6 14 8 2 2 4 5 33 67 4 18 41 2 113 118 207 Haulers Intercepted 1 | . 1 . . . . . . . . . . . . . . . . . . . . . . . Recyclers Shooed 1 | 1 . . . . . . . . . . . . . . . . . . . . . . . . Parts Field Recycled . | . . . . . . . . . . . . . . . . . . . . . . . . . Retrieved Matter . | . . . . . . . . . . . . . . . . . . . . . . . . . Parts Self-Destructed 84 | . . . 20 . 19 . 2 13 7 9 . 8 1 2 3 . . . . . . . . . Prevented 44 | . . . . . . . . 12 . 11 . 13 2 . 6 . . . . . . . . . Kills | -11 -10 -10 -10 -9 -9 -6 -6 -6 -6 -5 -5 -5 -5 -5 -4 -4 -4 -4 -4 -4 -3 -3 -2 -1 ------- Run | Yrd Mat Min Sub Rec Scr Fac Low Low Zio Pro Fac Upp Upp Zhi Pro Fac Ext Cet Arc Hub Res Qua Res Acc Combat Hostiles Destroyed 180 | . . 5 9 . . 9 5 5 . 4 1 . 1 . 2 4 13 1 . 11 2 23 27 58 Melee 121 | . . . . . . 9 3 1 . . 1 . 1 . 2 3 6 1 . 11 2 20 22 39 Guns 3 | . . 3 . . . . . . . . . . . . . . . . . . . . . . Cannons 22 | . . . 6 . . . . . . . . . . . . 1 . . . . . 2 3 10 AOE 28 | . . 2 3 . . . 2 4 . 4 . . . . . . 7 . . . . . 1 5 Classes Destroyed 25 | 1 1 3 2 . . 7 . 1 . . 1 1 . . 1 . . . . 1 . 2 . 4 Worker 21 | . . . . . . 2 . . . . . . . . . 1 6 . . 2 . . 3 7 Builder 5 | . . 1 . . . . . . . . . . . . . . 3 . . . . . 1 . Tunneler 6 | 1 . . . . . . . . . . . . . . . . 3 . . . . . 2 . Hauler 1 | . 1 . . . . . . . . . . . . . . . . . . . . . . . Recycler 20 | . . . . . . 4 . . . . . . . . . 2 4 . . 1 . 5 3 1 Minesweeper 1 | . . . . . . . . . . . . 1 . . . . . . . . . . . . Mechanic 3 | . . . . . . 1 . . . . 1 . . . . 1 . . . . . . . . Operator 6 | . . . . . . . . . . . 1 . . . . . 1 . 3 . . 1 . . Drone 1 | . . . . . . . . . . . . . . . 1 . . . . . . . . . Watcher 13 | . . . . . . 1 . . . . . . . . . 1 . . . 1 . 2 5 3 Swarmer 35 | . . 3 1 . . 3 . 4 . . . . . . . . 3 . . 2 . 3 2 14 Cutter 2 | . . . . . . . . . . . . . . . . . . . . 2 . . . . Grunt 50 | . . 2 . . . 1 . . . 2 1 . 1 . . . 4 . . 2 2 10 7 18 Brawler 4 | . . . . . . . . . . . . . . . . . . . . . . . . 4 Duelist 6 | . . . . . . . . 1 . 2 . . . . . . . . . . . . . 3 Protector 1 | . . . . . . . . . . . . . . . . . . . . . . . . 1 Researcher 2 | . . . . . . . . . . . . . . . . . . . . . . 2 . . Sentry 10 | . . . . . . 1 . . . . . . . . . . 5 . . 2 . . 2 . Specialist 2 | . . . . . . . . . . . . . . . . . . . . . . . . 2 Hunter 18 | . . . . . . 2 1 . . . . . . . 1 1 . . . . . 4 7 2 Programmer 27 | . . . . . . 2 . . . . . . . . . 3 1 . . 3 . 5 7 6 Heavy 1 | . . . . . . . . . . . . . . . . . . . . . . . . 1 Q-Series 10 | . . . . . . . . . . . . . . . . . . . . . . 1 2 7 Cetus Guard 1 | . . . . . . . . . . . . . . . . . . 1 . . . . . . Artisan 1 | . . . 1 . . . . . . . . . . . . . . . . . . . . . Subdweller 11 | . . . 8 . 3 . . . . . . . . . . . . . . . . . . . Decomposer 2 | . . . . . . . . 2 . . . . . . . . . . . . . . . . Packrat 1 | . . . . . . . 1 . . . . . . . . . . . . . . . . . Wasp 3 | . . . . . . . 3 . . . . . . . . . . . . . . . . . Thug 1 | . . . . . . . 1 . . . . . . . . . . . . . . . . . Guerrilla 1 | . . . . . . . . . . . . . . . . . . . 1 . . . . . Wizard 2 | . . . . . . . . 1 . 1 . . . . . . . . . . . . . . Best Kill Streak 9 | 1 1 4 2 . . 7 4 4 . 4 1 1 1 . 1 1 9 1 2 3 1 6 8 9 Combat Bots Only 7 | . . 3 2 . . 2 4 4 . 4 1 . 1 . 1 1 3 1 . 2 1 6 6 7 Max Kills in Single Turn 6 | 1 1 2 1 . 1 1 2 2 . 3 1 1 1 . 1 1 6 1 1 1 1 1 1 3 Gunslinging . | . . . . . . . . . . . . . . . . . . . . . . . . . Exploded 3 | . . 1 1 . . . 2 2 . 2 . . . . . . 3 . . . . . 1 2 Melee 1 | . . . . . . 1 1 1 . . 1 . 1 . 1 1 1 1 . 1 1 1 1 1 Uniques/NPCs Destroyed . | . . . . . . . . . . . . . . . . . . . . . . . . . Combat | -11 -10 -10 -10 -9 -9 -6 -6 -6 -6 -5 -5 -5 -5 -5 -4 -4 -4 -4 -4 -4 -3 -3 -2 -1 -------- Run | Yrd Mat Min Sub Rec Scr Fac Low Low Zio Pro Fac Upp Upp Zhi Pro Fac Ext Cet Arc Hub Res Qua Res Acc Hostile Shots Fired 1758 | . . 21 32 3 . 104 88 5 . . 22 3 . . 10 70 51 52 18 111 24 138 273 733 Missed 603 | . . 6 14 2 . 42 33 1 . . 8 2 . . 5 31 25 31 7 48 9 40 80 219 Deflected 35 | . . . . . . . . . . . . . . . . . . . . . . 5 8 22 Damage Taken 20186 | . . 222 607 14 . 888 906 69 . 34 350 27 118 . 177 819 880 607 345 1444 401 2254 2939 7085 Core 2947 | . . 33 171 . . 84 61 18 . . 73 . 5 . 8 70 81 51 38 89 34 374 958 799 Absorbed by Shields 8121 | . . . . . . 35 . . . . . . . . . . 50 . . . . . 1896 6140 Reduced by Siege Mode 34 | . . . . . . . . . . . . . . . . . . . . . . 4 . 30 Redirected to Core 834 | . . . . . . . . . . . . . . . . . . . . . . 38 642 154 Ignored by Resistances 164 | . . . . . . . . . . 4 . . . . . . . . . . . 48 . 112 Regen/Repaired (Parts) 106 | . . . . . . 54 . . 39 . . . . . . 13 . . . . . . . . Core Remaining (%) 59 | 100 . . . . 18 . . . . 80 . . . . 91 . . . . 71 . 61 8 50 Volleys Fired 212 | 8 10 15 60 1 8 . 1 4 . 4 . 13 . . . 2 19 . 30 3 . 16 6 12 Largest 2 | 2 2 2 2 2 1 . 1 1 . 1 . 1 . . . 1 1 . 1 1 . 1 1 1 Hottest 128 | 40 40 53 128 128 . . 30 30 . 39 . 90 . . . 90 39 . 30 90 . 90 90 90 Shots Fired 251 | 16 20 25 70 2 8 . 1 4 . 4 . 13 . . . 2 19 . 30 3 . 16 6 12 Gun 56 | 16 20 20 . . . . . . . . . . . . . . . . . . . . . . Cannon 104 | . . . 63 2 . . . . . . . 13 . . . 2 . . . 3 . 16 2 3 Launcher 53 | . . 5 7 . . . 1 4 . 4 . . . . . . 19 . . . . . 4 9 Special 38 | . . . . . 8 . . . . . . . . . . . . . 30 . . . . . Kinetic 79 | 16 20 20 22 1 . . . . . . . . . . . . . . . . . . . . Thermal 111 | . . . 41 1 . . . . . . . 13 . . . 2 . . 30 3 . 16 2 3 Explosive 53 | . . 5 7 . . . 1 4 . 4 . . . . . . 19 . . . . . 4 9 Electromagnetic . | . . . . . . . . . . . . . . . . . . . . . . . . . Robot Hit Streak 13 | 5 6 11 5 2 8 . 9 . . . . . . . . 11 12 . 13 . . . . 7 Robot Miss Streak 3 | 2 3 2 3 1 . . . . . . . . . . . . . . 3 . . . . 3 Penetration Max . | . . . . . . . . . . . . . . . . . . . . . . . . . Secondary Targets 1 | . . 1 . . . . . . . . . . . . . . . . . . . . . . Max Gunslinging Chain 1 | . . 1 . . . . . . . . . . . . . . . . . . . . . . Autonomous 51 | . . . . . . . . . . . . . . . . . . . . . 2 3 15 31 Shots Hit Robots 638 | 9 13 15 16 1 27 30 23 8 4 2 7 3 2 6 4 24 26 7 29 44 4 67 90 177 Core Hits 387 | 1 1 9 11 . 6 15 14 10 3 13 3 1 1 3 3 12 62 2 12 18 2 34 57 94 Critical Kills . | . . . . . . . . . . . . . . . . . . . . . . . . . Critical Parts Destroyed 1 | . 1 . . . . . . . . . . . . . . . . . . . . . . . Critical Strikes 21 | . 1 . . . 2 . . . . . . . . . . 2 . . . 2 . 2 2 10 Destroy 1 | . 1 . . . . . . . . . . . . . . . . . . . . . . . Melee Attacks 846 | . . . . . 19 61 30 10 8 2 20 12 3 6 7 51 29 10 14 79 14 112 134 225 Impact . | . . . . . . . . . . . . . . . . . . . . . . . . . Slashing 844 | . . . . . 19 61 30 10 6 2 20 12 3 6 7 51 29 10 14 79 14 112 134 225 Piercing 2 | . . . . . . . . . 2 . . . . . . . . . . . . . . . Sneak Attacks 107 | . . . . . 9 10 1 6 . . 4 3 1 . 1 6 4 . 5 3 1 12 14 27 Combat Hostiles 31 | . . . . . . . . . . . 1 . 1 . 1 . . . . . 1 2 6 19 Follow-up Attacks 8 | . . . . . . . . . . . . . . 1 . 1 1 . . 1 . 1 . 3 Damage Inflicted 46845 | 126 170 437 634 27 1350 1903 1687 809 396 690 406 228 123 537 173 1211 3430 267 869 2050 536 5062 8176 15548 Guns 499 | 126 170 203 . . . . . . . . . . . . . . . . . . . . . . Cannons 4892 | . . . 343 27 . . . . . . . . . . . 75 . . . . 185 287 1270 2705 Explosions 5415 | . . 234 291 . . . 170 251 . 622 . . . . . . 2232 . . . . . 737 878 Melee 35897 | . . . . . 1350 1903 1517 558 396 68 406 228 123 537 173 1136 1198 267 743 2050 351 4775 6154 11964 Ramming 16 | . . . . . . . . . . . . . . . . . . . . . . . 15 1 Kinetic 649 | 126 170 203 150 . . . . . . . . . . . . . . . . . . . . . Thermal 421 | . . . 193 27 . . . . . . . . . . . 75 . . 126 . . . . . Explosive 5415 | . . 234 291 . . . 170 251 . 622 . . . . . . 2232 . . . . . 737 878 Electromagnetic . | . . . . . . . . . . . . . . . . . . . . . . . . . Impact . | . . . . . . . . . . . . . . . . . . . . . . . . . Slashing 35897 | . . . . . 1350 1903 1517 558 396 68 406 228 123 537 173 1136 1198 267 743 2050 351 4775 6154 11964 Piercing . | . . . . . . . . . . . . . . . . . . . . . . . . . Phasic 4447 | . . . . . . . . . . . . . . . . . . . . . 185 287 1270 2705 Highest Corruption 38 | . . . . . . 3 . . . 10 . . . . . . 2 1 1 . . . 1 38 Average Corruption 12 | . . . . . . 2 . . . 1 . . . . . . 1 1 1 . . . 1 26 Corruption Purged 8 | . . . . . . . . . . . . . . . . . 2 . 6 . . . . . Corruption Blocked 12 | . . . . . . . . . . . . . . . . 12 . . . . . . . . Effects 104 | . . . . . . 8 . . . 4 . . . . . . . . 1 . . . 7 84 Message Errors 23 | . . . . . . . . . . 1 . . . . . . . . . . . . 2 20 Matter Fused 32 | . . . . . . 4 . . . . . . . . . . . . . . . . 3 25 Heat Flow Errors 9 | . . . . . . . . . . 1 . . . . . . . . . . . . . 8 Energy Discharges 13 | . . . . . . 1 . . . . . . . . . . . . . . . . . 12 Parts Rejected 1 | . . . . . . . . . . 1 . . . . . . . . . . . . . . Data Loss (minor) 8 | . . . . . . 2 . . . 1 . . . . . . . . . . . . 1 4 Data Loss (major) 8 | . . . . . . 1 . . . . . . . . . . . . 1 . . . . 6 Alerts 3 | . . . . . . . . . . . . . . . . . . . . . . . 1 2 Misdirections 7 | . . . . . . . . . . . . . . . . . . . . . . . . 7 Overload Shots . | . . . . . . . . . . . . . . . . . . . . . . . . . Overflow Damage 4770 | . . 32 . . 97 283 701 129 30 . 120 72 18 253 . 138 46 . 197 173 28 628 569 1256 Projectiles 391 | . . . . . . . . . . . . . . . . . . . . . 9 28 87 267 Explosions 69 | . . 32 . . . . . . . . . . . . . . 19 . . . . . 13 5 Melee 4310 | . . . . . 97 283 701 129 30 . 120 72 18 253 . 138 27 . 197 173 19 600 469 984 Knockbacks 2 | . . . 1 . . . . . . . . . . . . . . . . . . . 1 . Impact 1 | . . . . . . . . . . . . . . . . . . . . . . . 1 . Kinetic 1 | . . . 1 . . . . . . . . . . . . . . . . . . . . . Secondary . | . . . . . . . . . . . . . . . . . . . . . . . . . Self-Inflicted Damage 194 | . . 22 75 . . . . . . . . . . . . . . . . . . . . 97 Shots 7 | . . 1 3 . . . . . . . . . . . . . . . . . . . . 3 Rammed 2 | . . . . . . . . . . . . . . . . . . . . . . . 1 1 Targets Rammed 2 | . . . . . . . . . . . . . . . . . . . . . . . 1 1 Kicked . | . . . . . . . . . . . . . . . . . . . . . . . . . Crushed . | . . . . . . . . . . . . . . . . . . . . . . . . . Highest Temperature 257 | . . 20 63 60 . . 6 . . 103 . 204 . . . 6 . . . 12 . . 48 257 Average Temperature 47 | . . 7 20 33 . . 4 . . 52 . 76 . . . 4 . . . 6 . . 24 89 Received Heat Transfer 1946 | . . 114 54 9 . 100 117 18 . 9 87 . 24 . . 12 132 63 45 251 144 135 206 426 Siege Activations 4 | . . . . . . . . . . . . . . . . . . . . . . 1 . 3 Total Turns 53 | . . . . . . . . . . . . . . . . . . . . . . 4 . 49 Longest Duration 22 | . . . . . . . . . . . . . . . . . . . . . . 4 . 22 Robots Corrupted . | . . . . . . . . . . . . . . . . . . . . . . . . . Combat Hostiles . | . . . . . . . . . . . . . . . . . . . . . . . . . Parts Fried 1 | . . . . . . . . . . . . . . . . 1 . . . . . . . . Impact Corruptions . | . . . . . . . . . . . . . . . . . . . . . . . . . Robots Melted . | . . . . . . . . . . . . . . . . . . . . . . . . . Combat Hostiles . | . . . . . . . . . . . . . . . . . . . . . . . . . Parts Melted 2 | . . . . . . . . . . . . . . . . . . . . . . . . 2 Heat Transferred 971 | . . . 259 37 . . . . . . . . . . . 100 . . 575 . . . . . Parts Sabotaged 1 | . . . . . . . . . . . . . . . . . . . . 1 . . . . Parts Stolen . | . . . . . . . . . . . . . . . . . . . . . . . . . Parts Stripped 49 | . . . . . . . . . . . . . . . . . . . . . . 7 27 15 Power Chain Reactions . | . . . . . . . . . . . . . . . . . . . . . . . . . Alert | -11 -10 -10 -10 -9 -9 -6 -6 -6 -6 -5 -5 -5 -5 -5 -4 -4 -4 -4 -4 -4 -3 -3 -2 -1 ------- Run | Yrd Mat Min Sub Rec Scr Fac Low Low Zio Pro Fac Upp Upp Zhi Pro Fac Ext Cet Arc Hub Res Qua Res Acc Peak Influence 1544 | 5 35 150 . 397 . 248 . . . . 318 . . . . 748 1544 681 467 1284 442 466 680 1326 Initial 425 | . 3 13 . 48 . . . . . . 318 . . . . . 361 425 192 100 414 111 58 357 Average 369 | 1 22 57 . 192 . 94 . . . . 163 . . . . 361 560 552 388 544 258 182 318 750 Maximum Alert Level 4 | . . . . 1 . 1 . . . . 1 . . . . 3 4 2 2 4 2 2 2 4 Low Security (%) 37 | 100 100 100 . 50 . 87 . . . . 81 . . . . 28 2 . 2 15 50 58 34 . Level 1 29 | . . . . 49 . 12 . . . . 18 . . . . 38 56 . 40 27 16 39 18 31 Level 2 18 | . . . . . . . . . . . . . . . . 15 16 100 57 22 32 1 47 17 Level 3 8 | . . . . . . . . . . . . . . . . 16 10 . . 27 . . . 22 Level 4 6 | . . . . . . . . . . . . . . . . . 13 . . 7 . . . 28 Level 5 . | . . . . . . . . . . . . . . . . . . . . . . . . . High Security . | . . . . . . . . . . . . . . . . . . . . . . . . . Max Security . | . . . . . . . . . . . . . . . . . . . . . . . . . Squads Dispatched 75 | . . . . . . 6 . . . 1 7 . . . . 7 6 . . 10 6 9 8 15 Investigation 9 | . . . . . . 2 . . . . 2 . . . . . 1 . . . 1 1 2 . Extermination 22 | . . . . . . 2 . . . . . . . . . 3 . . . 3 . 4 3 7 Reinforcement 30 | . . . . . . 2 . . . . 2 . . . . 3 4 . . 6 5 4 2 2 Assault 10 | . . . . . . . . . . 1 . . . . . . 1 . . 1 . . 1 6 Garrison 4 | . . . . . . . . . . . 3 . . . . 1 . . . . . . . . Intercept . | . . . . . . . . . . . . . . . . . . . . . . . . . Searches Triggered . | . . . . . . . . . . . . . . . . . . . . . . . . . Construction Impeded 8 | . . . . . . . . . . . 1 . . . . 2 2 . . 3 . . . . Haulers Reinforced 2 | . . . . . . . . . . . . . . . . . . . . . 2 . . . Active Scanning Responses . | . . . . . . . . . . . . . . . . . . . . . . . . . Cargo Convoy Interrupts 1 | . . . . . . . . . . . . . . . . . . . . . . . 1 . Stealth | -11 -10 -10 -10 -9 -9 -6 -6 -6 -6 -5 -5 -5 -5 -5 -4 -4 -4 -4 -4 -4 -3 -3 -2 -1 --------- Run | Yrd Mat Min Sub Rec Scr Fac Low Low Zio Pro Fac Upp Upp Zhi Pro Fac Ext Cet Arc Hub Res Qua Res Acc Distress Signals 23 | . . . . . . 1 . . . . 1 . . . . 2 8 2 . 4 3 1 1 . Communications Jammed 108 | . . . . . . . . . . . . . . . . 8 . . . . . 1 24 75 Distress Signals 97 | . . . . . . . . . . . . . . . . 8 . . . . . 1 23 65 Times Spotted 442 | . 2 5 25 4 . 24 11 8 . 18 19 8 3 . 6 23 42 11 10 32 9 34 50 98 Peak Tracking Total 10 | . 3 3 6 2 . 4 4 4 . 10 6 4 2 . 3 3 6 5 2 7 4 6 6 8 Tactical Retreats 25 | . . . 1 . . 2 4 . . . 4 . . . . 1 . . . 3 . 2 1 7 Traps | -11 -10 -10 -10 -9 -9 -6 -6 -6 -6 -5 -5 -5 -5 -5 -4 -4 -4 -4 -4 -4 -3 -3 -2 -1 ------- Run | Yrd Mat Min Sub Rec Scr Fac Low Low Zio Pro Fac Upp Upp Zhi Pro Fac Ext Cet Arc Hub Res Qua Res Acc Traps Triggered 9 | . . . 1 . . 1 . . . . . . . . . 2 2 . . 1 . 1 1 . Indirectly . | . . . . . . . . . . . . . . . . . . . . . . . . . Trap Hack Attempts . | . . . . . . . . . . . . . . . . . . . . . . . . . Triggered . | . . . . . . . . . . . . . . . . . . . . . . . . . Disarmed . | . . . . . . . . . . . . . . . . . . . . . . . . . Reprogrammed . | . . . . . . . . . . . . . . . . . . . . . . . . . Reused . | . . . . . . . . . . . . . . . . . . . . . . . . . Traps Extracted . | . . . . . . . . . . . . . . . . . . . . . . . . . Installed . | . . . . . . . . . . . . . . . . . . . . . . . . . Triggered 4 | . . . . . . . . . . . . 2 1 . . . . . . . . . 1 . Most Traps Carried 1 | . . . . . 1 1 1 1 1 . . . . . . . . . . . . . . . Machines | -11 -10 -10 -10 -9 -9 -6 -6 -6 -6 -5 -5 -5 -5 -5 -4 -4 -4 -4 -4 -4 -3 -3 -2 -1 ---------- Run | Yrd Mat Min Sub Rec Scr Fac Low Low Zio Pro Fac Upp Upp Zhi Pro Fac Ext Cet Arc Hub Res Qua Res Acc Machines Disabled 29 | . . . 4 . . 1 . . . . . . . . . 6 4 . 3 4 . 4 . 3 Max in Single Turn 1 | . . . . . . . . . . . . . . . . . 1 . . 1 . 1 . 1 Garrison Access 5 | . . . . . . 1 . . . . . . . . . 1 . . . . 2 . 1 . Energy Cycler 1 | . . . . . . . . . . . . . . . . . . . . . . . . 1 Machines Repaired . | . . . . . . . . . . . . . . . . . . . . . . . . . Machines Dismantled . | . . . . . . . . . . . . . . . . . . . . . . . . . Machines Sabotaged . | . . . . . . . . . . . . . . . . . . . . . . . . . Overloaded Fab Kills . | . . . . . . . . . . . . . . . . . . . . . . . . . Hacking | -11 -10 -10 -10 -9 -9 -6 -6 -6 -6 -5 -5 -5 -5 -5 -4 -4 -4 -4 -4 -4 -3 -3 -2 -1 --------- Run | Yrd Mat Min Sub Rec Scr Fac Low Low Zio Pro Fac Upp Upp Zhi Pro Fac Ext Cet Arc Hub Res Qua Res Acc Machines Accessed 84 | . 5 . 1 9 3 15 . . . . 4 . 1 4 . 4 10 1 . 5 2 9 7 4 Terminals 48 | . 4 . . 4 . 9 . . . . 2 . . . . . 10 1 . 5 1 6 4 2 Fabricators 3 | . . . . . . . . . . . 1 . . . . 1 . . . . . . 1 . Repair Stations 7 | . . . . . . 2 . . . . . . . . . 2 . . . . . 2 1 . Recycling Units 7 | . 1 . . 5 . . . . . . 1 . . . . . . . . . . . . . Scanalyzers 2 | . . . . . . 2 . . . . . . . . . . . . . . . . . . Garrison Access 8 | . . . . . . 2 . . . . . . . . . 1 . . . . 1 1 1 2 Total Hacks 220 | . 17 . 1 23 8 40 . . . . 12 . 1 17 . 8 26 2 . 13 3 25 19 5 Successful 124 | . 9 . 1 12 8 17 . . . . 6 . 1 17 . 7 17 1 . 9 2 10 7 . Failed 95 | . 7 . . 11 . 23 . . . . 6 . . . . 1 9 1 . 4 1 15 12 5 Catastrophic 19 | . 2 . . 3 . 5 . . . . 1 . . . . . 2 . . . . 1 1 4 Database Lockouts 1 | . 1 . . . . . . . . . . . . . . . . . . . . . . . Manual 69 | . 11 . . 15 . 12 . . . . 4 . . . . 2 11 1 . 6 1 3 2 1 Terminals 133 | . 16 . . 14 . 24 . . . . 6 . . . . . 26 2 . 13 1 17 11 3 Fabricators 9 | . . . . . . . . . . . 4 . . . . 2 . . . . . . 3 . Repair Stations 20 | . . . . . . 6 . . . . . . . . . 5 . . . . . 5 4 . Recycling Units 12 | . 1 . . 9 . . . . . . 2 . . . . . . . . . . . . . Scanalyzers 7 | . . . . . . 7 . . . . . . . . . . . . . . . . . . Garrison Access 12 | . . . . . . 3 . . . . . . . . . 1 . . . . 2 3 1 2 Terminal Hacks 76 | . 7 . 1 3 8 5 . . . . 2 . 1 17 . . 16 1 . 6 . 6 3 . Record 5 | . . . . . . . . . . . . . . 5 . . . . . . . . . . Part Schematic 13 | . 1 . . 2 . 1 . . . . 1 . . 4 . . 4 . . . . . . . Robot Analysis 14 | . 2 . . 1 6 . . . . . . . . 4 . . . . . . . . 1 . Prototype ID Bank 6 | . 1 . . . . 1 . . . . . . . 4 . . . . . . . . . . Open Door 9 | . . . 1 . 1 . . . . . . . 1 . . . 5 1 . . . . . . Open DSF 1 | . . . . . . . . . . . . . . . . . . . . . . . 1 . Level Access Points 1 | . . . . . . . . . . . . . . . . . . . . . . . 1 . Branch Access Points 1 | . . . . . . 1 . . . . . . . . . . . . . . . . . . Machine Index 1 | . . . . . . . . . . . . . . . . . 1 . . . . . . . Terminal Index 2 | . 1 . . . . 1 . . . . . . . . . . . . . . . . . . Alert Level 4 | . . . . . . . . . . . . . . . . . 1 . . 1 . 2 . . Unreport Threat 11 | . . . . . . . . . . . . . . . . . 5 . . 3 . 3 . . Locate Traps 3 | . 2 . . . . . . . . . 1 . . . . . . . . . . . . . Recall Reinforcements 1 | . . . . . . . . . . . . . . . . . . . . 1 . . . . Zone Layout 3 | . . . . . . 1 . . . . . . . . . . . . . 1 . 1 . . Derelict Proto ID Bank 1 | . . . . . 1 . . . . . . . . . . . . . . . . . . . Fabricator Hacks 4 | . . . . . . . . . . . 1 . . . . 1 . . . . . . 2 . Load Schematic 2 | . . . . . . . . . . . 1 . . . . . . . . . . . 1 . Build 2 | . . . . . . . . . . . . . . . . 1 . . . . . . 1 . Repair Station Hacks 9 | . . . . . . 3 . . . . . . . . . 3 . . . . . 2 1 . Scan Component 7 | . . . . . . 2 . . . . . . . . . 2 . . . . . 2 1 . Repair 2 | . . . . . . 1 . . . . . . . . . 1 . . . . . . . . Recycling Unit Hacks 5 | . 1 . . 3 . . . . . . 1 . . . . . . . . . . . . . Report Inventory 4 | . 1 . . 2 . . . . . . 1 . . . . . . . . . . . . . Retrieve Components 1 | . . . . 1 . . . . . . . . . . . . . . . . . . . . Scanalyzer 3 | . . . . . . 3 . . . . . . . . . . . . . . . . . . Insert Component 2 | . . . . . . 2 . . . . . . . . . . . . . . . . . . Analyze 1 | . . . . . . 1 . . . . . . . . . . . . . . . . . . Garrison Access Hacks 4 | . . . . . . 1 . . . . . . . . . 1 . . . . 1 . 1 . Seal Access 4 | . . . . . . 1 . . . . . . . . . 1 . . . . 1 . 1 . Unauthorized Hacks 23 | . 1 . . 6 . 5 . . . . 2 . . . . 2 1 . . 3 1 2 . . Terminals 16 | . 1 . . 1 . 5 . . . . 2 . . . . . 1 . . 3 1 2 . . Track 1 | . . . . . . . . . . . . . . . . . . . . . . 1 . . Assimilate 3 | . . . . . . 2 . . . . . . . . . . . . . . 1 . . . Botnet 12 | . 1 . . 1 . 3 . . . . 2 . . . . . 1 . . 3 . 1 . . Fabricators 1 | . . . . . . . . . . . . . . . . 1 . . . . . . . . Prioritize 1 | . . . . . . . . . . . . . . . . 1 . . . . . . . . Repair Stations 1 | . . . . . . . . . . . . . . . . 1 . . . . . . . . Mechanics 1 | . . . . . . . . . . . . . . . . 1 . . . . . . . . Recycling Units 5 | . . . . 5 . . . . . . . . . . . . . . . . . . . . Tunnel 5 | . . . . 5 . . . . . . . . . . . . . . . . . . . . Scanalyzers . | . . . . . . . . . . . . . . . . . . . . . . . . . Garrison Access . | . . . . . . . . . . . . . . . . . . . . . . . . . Data Cores Recovered 2 | . . . . . . . . . . . . . . . . . . . . 1 . 1 . . Used . | . . . . . . . . . . . . . . . . . . . . . . . . . Hacking Detections 57 | . 4 . . 7 . 14 . . . . 4 . . . . 3 4 1 . 3 1 9 4 3 Full Trace Events 11 | . . . . 4 . 2 . . . . 2 . . . . . . . . . . 1 2 . Feedback Events 1 | . . . . . . 1 . . . . . . . . . . . . . . . . . . Corruption 1 | . . . . . . 1 . . . . . . . . . . . . . . . . . . Feedback Blocked . | . . . . . . . . . . . . . . . . . . . . . . . . . Robot Schematics Acquired 2 | . . . . . . . . . . . . . . . . . . . . . . 2 . . Robots Built . | . . . . . . . . . . . . . . . . . . . . . . . . . Authchips . | . . . . . . . . . . . . . . . . . . . . . . . . . Time . | . . . . . . . . . . . . . . . . . . . . . . . . . Total Robot Build Rating . | . . . . . . . . . . . . . . . . . . . . . . . . . Part Schematics Acquired 22 | . 1 . . 2 . 2 . . . . 1 . . 4 . . 4 . . . . 8 . . Parts Built 3 | . . . . . . . . . . . . . . . . 2 . . . . . . 1 . Authchips . | . . . . . . . . . . . . . . . . . . . . . . . . . Time 162 | . . . . . . . . . . . . . . . . 69 . . . . . . 93 . Total Part Build Rating 25 | . . . . . . . . . . . . . . . . 18 . . . . . . 7 . Parts Repaired 2 | . . . . . . 1 . . . . . . . . . 1 . . . . . . . . Time 94 | . . . . . . 44 . . . . . . . . . 50 . . . . . . . . Parts Recycled . | . . . . . . . . . . . . . . . . . . . . . . . . . Recycled Matter . | . . . . . . . . . . . . . . . . . . . . . . . . . Retrieved Matter . | . . . . . . . . . . . . . . . . . . . . . . . . . Retrieved Components 10 | . . . . 10 . . . . . . . . . . . . . . . . . . . . Parts Scanalyzed 1 | . . . . . . 1 . . . . . . . . . . . . . . . . . . Part Schematics Acquired 1 | . . . . . . 1 . . . . . . . . . . . . . . . . . . Parts Damaged 1 | . . . . . . 1 . . . . . . . . . . . . . . . . . . Bothacking | -11 -10 -10 -10 -9 -9 -6 -6 -6 -6 -5 -5 -5 -5 -5 -4 -4 -4 -4 -4 -4 -3 -3 -2 -1 ------------ Run | Yrd Mat Min Sub Rec Scr Fac Low Low Zio Pro Fac Upp Upp Zhi Pro Fac Ext Cet Arc Hub Res Qua Res Acc Used RIF Installer . | . . . . . . . . . . . . . . . . . . . . . . . . . Robots Hacked . | . . . . . . . . . . . . . . . . . . . . . . . . . Non-combat . | . . . . . . . . . . . . . . . . . . . . . . . . . Combat . | . . . . . . . . . . . . . . . . . . . . . . . . . Robot Hacks Applied . | . . . . . . . . . . . . . . . . . . . . . . . . . Relay Couplers Released 8 | . . . . . . . . . . . . . . . . . . . . . 2 . 3 3 Machine Destruction 2 | . . . . . . . . . . . . . . . . . . . . . 2 . . . Programmers 6 | . . . . . . . . . . . . . . . . . . . . . . . 3 3 Fabnet Peak Effective % . | . . . . . . . . . . . . . . . . . . . . . . . . . Robots Rewired 19 | . . . . 3 . . . 2 . 2 . . . . . 1 10 . . . . . 1 . Allies Hacked 2 | . . . . . . . . . . . . . . . . . 2 . . . . . . . Hacks Repelled 3 | . . . . . . . . . . . . . . . . 2 1 . . . . . . . Allies | -11 -10 -10 -10 -9 -9 -6 -6 -6 -6 -5 -5 -5 -5 -5 -4 -4 -4 -4 -4 -4 -3 -3 -2 -1 -------- Run | Yrd Mat Min Sub Rec Scr Fac Low Low Zio Pro Fac Upp Upp Zhi Pro Fac Ext Cet Arc Hub Res Qua Res Acc Total Allies 98 | . . . 11 3 1 2 . 8 . 8 3 5 2 . 5 14 17 5 . . 7 . 7 . Largest Group 13 | . . . 8 8 8 6 1 4 3 7 8 4 4 4 4 6 13 10 10 8 5 2 4 . Highest-Rated Group 827 | . . . 154 156 167 167 10 324 142 407 443 324 318 318 324 384 679 827 794 613 369 162 324 . Highest-Rated Ally 159 | . . . 21 27 67 67 10 81 81 81 81 81 81 81 81 81 159 153 130 96 81 81 81 . Total Orders 33 | . . . . . 2 2 2 5 . . . . . . 13 . 2 . 4 3 . . . . STAY 10 | . . . . . . 1 1 1 . . . . . . 2 . 1 . 2 2 . . . . FOLLOW 7 | . . . . . 1 1 1 . . . . . . . . . 1 . 2 1 . . . . PICKUP 1 | . . . . . 1 . . . . . . . . . . . . . . . . . . . EXPLORE 9 | . . . . . . . . 3 . . . . . . 6 . . . . . . . . . RETURN 6 | . . . . . . . . 1 . . . . . . 5 . . . . . . . . . Ally Attacks 908 | . . . 33 24 . 17 . 21 . 66 35 36 10 . 21 181 154 64 26 120 32 6 62 . Total Damage 29024 | . . . 917 826 . 875 . 482 . 1879 1420 984 821 . 530 4982 4494 1792 1208 5040 1279 207 1288 . Kills 193 | . . . 8 12 . 5 . 5 . 14 8 9 3 . 5 36 31 8 4 29 8 1 7 . Allies Corrupted 2 | . . . . . . . . . . 1 . . . . . . 1 . . . . . . . Allies Melted 1 | . . . . . . 1 . . . . . . . . . . . . . . . . . . Intel | -11 -10 -10 -10 -9 -9 -6 -6 -6 -6 -5 -5 -5 -5 -5 -4 -4 -4 -4 -4 -4 -3 -3 -2 -1 ------- Run | Yrd Mat Min Sub Rec Scr Fac Low Low Zio Pro Fac Upp Upp Zhi Pro Fac Ext Cet Arc Hub Res Qua Res Acc Robot Analysis Total 14 | . 2 . . 1 6 . . . . . . . . 4 . . . . . . . . 1 . Derelict Logs Recovered 18 | . . 1 2 . 5 . . 3 1 2 . 1 1 . 2 . . . . . . . . . Drone Launches 5 | . . . . . . . . 2 . . . . . . 3 . . . . . . . . . Drone Recoveries 1 | . . . . . . . . 1 . . . . . . . . . . . . . . . . Decoded 0b10 Intel 39 | . . . . . . . . . . . . . . . . . . . . . . . 16 23 Traps 26 | . . . . . . . . . . . . . . . . . . . . . . . 12 14 Emergency Access 10 | . . . . . . . . . . . . . . . . . . . . . . . 3 7 Garrisons 2 | . . . . . . . . . . . . . . . . . . . . . . . 1 1 Exits 1 | . . . . . . . . . . . . . . . . . . . . . . . . 1 Exploration | -11 -10 -10 -10 -9 -9 -6 -6 -6 -6 -5 -5 -5 -5 -5 -4 -4 -4 -4 -4 -4 -3 -3 -2 -1 ------------- Run | Yrd Mat Min Sub Rec Scr Fac Low Low Zio Pro Fac Upp Upp Zhi Pro Fac Ext Cet Arc Hub Res Qua Res Acc Turns Passed 34206 | 79 184 682 3274 1032 8204 1722 497 716 2193 702 634 796 545 273 929 1470 1750 408 593 1459 676 1506 1601 2281 Spaces Moved 22133 | 45 167 627 1927 598 4815 1325 416 559 1798 654 517 637 442 215 593 1004 1221 257 386 911 502 849 726 942 Core 1 | 1 . . . . . . . . . . . . . . . . . . . . . . . . Treads 8563 | . . . 1870 598 4108 . . . . . . . . . . . . . . . . 319 726 942 Legs 12674 | . . . . . 707 1325 416 559 1798 654 517 637 442 215 593 1004 1221 257 386 911 502 530 . . Wheels 895 | 44 167 627 57 . . . . . . . . . . . . . . . . . . . . . Hover . | . . . . . . . . . . . . . . . . . . . . . . . . . Flight . | . . . . . . . . . . . . . . . . . . . . . . . . . Fastest Speed 50 | 50 90 90 90 160 160 90 90 90 90 90 105 105 110 110 110 110 110 120 120 120 120 110 153 148 Average Speed 129 | 88 90 90 157 160 162 90 96 107 112 92 105 110 110 110 110 110 112 120 120 120 120 131 154 158 Slowest Speed 237 | 90 90 90 160 160 180 110 110 110 180 180 105 186 110 110 110 186 190 190 120 120 120 185 237 232 Overloaded Moves . | . . . . . . . . . . . . . . . . . . . . . . . . . Propulsion Burnouts . | . . . . . . . . . . . . . . . . . . . . . . . . . Robots Hopped . | . . . . . . . . . . . . . . . . . . . . . . . . . Cave-ins Triggered 1 | . . . . . . . . . . . . . . . . . . . . . . 1 . . Teleports 5 | . . . . . . . . . . . . . . . . . . . . . . 1 4 . Exploration Rate (%) 59 | 4 44 94 97 86 95 35 49 58 89 69 17 87 61 60 95 16 80 66 87 44 14 83 34 16 Regions Visited 24 Branch Regions 17 Pre-discovered Areas 14 | . . . 1 5 1 . . . 3 . . . . 3 1 . . . . . . . . . Known Exits Taken 18 | . . . 1 . . 1 1 1 . 1 1 1 1 1 1 1 1 1 1 1 1 1 1 . Unknown Exits Taken 6 | 1 1 1 . 1 1 . . . 1 . . . . . . . . . . . . . . . Scrap Searched 36 | . . 2 17 . 4 . . 2 5 3 . 2 . . 1 . . . . . . . . . Spaces Dug 276 | . . 42 11 . . 23 2 2 1 . 13 19 1 . 3 19 1 . . 31 9 39 35 25 Terrain Destroyed 498 | . . 51 48 . . 23 8 24 1 24 13 19 1 . 3 19 62 . . 31 9 39 50 73 Melee 184 | . . . . . . 23 2 2 1 . 13 6 1 . 3 19 1 . . 28 9 23 33 20 Projectile 45 | . . . 9 . . . . . . . . 13 . . . . . . . 3 . 16 2 2 AOE 269 | . . 51 39 . . . 6 22 . 24 . . . . . . 61 . . . . . 15 51 Terrain Rammed . | . . . . . . . . . . . . . . . . . . . . . . . . . Walls Destroyed . | . . . . . . . . . . . . . . . . . . . . . . . . . Machines Disabled . | . . . . . . . . . . . . . . . . . . . . . . . . . Actions | -11 -10 -10 -10 -9 -9 -6 -6 -6 -6 -5 -5 -5 -5 -5 -4 -4 -4 -4 -4 -4 -3 -3 -2 -1 --------- Run | Yrd Mat Min Sub Rec Scr Fac Low Low Zio Pro Fac Upp Upp Zhi Pro Fac Ext Cet Arc Hub Res Qua Res Acc Total 26565 | 64 180 718 2092 671 5202 1765 472 656 1968 740 578 700 498 244 860 1302 1541 353 482 1181 556 1162 1120 1460 Wait 2219 | . . 65 47 48 79 307 18 18 109 26 28 31 50 3 255 207 196 74 38 140 31 98 185 166 Move 22108 | 44 166 626 1926 597 4814 1324 415 558 1797 653 516 636 441 214 592 1003 1220 256 385 910 501 848 725 941 Hop . | . . . . . . . . . . . . . . . . . . . . . . . . . Pick Up 268 | 5 2 4 13 . 121 23 . 6 10 2 3 1 1 3 2 7 7 . . 3 3 13 8 31 Fast Attach 133 | 7 . . 5 . 9 9 1 3 13 4 1 . 1 8 . 4 7 6 5 12 . 16 9 13 Attach 107 | . . . 2 . 6 7 1 6 4 2 3 1 . . 2 6 8 . 2 5 2 9 12 29 Detach 76 | . . . 1 . 9 1 3 2 11 2 1 1 . . . 4 4 1 3 6 . 7 8 12 Swap 108 | . 1 5 13 . 4 9 1 2 . 3 2 3 . 1 1 3 7 2 2 7 3 16 16 7 Drop 335 | . 1 3 25 . 133 24 2 7 18 2 3 2 2 10 1 11 11 4 3 13 2 28 12 18 Fire 212 | 8 10 15 60 1 8 . 1 4 . 4 . 13 . . . 2 19 . 30 3 . 16 6 12 Melee 836 | . . . . . 19 61 30 10 6 2 20 12 3 5 7 50 28 10 14 78 14 111 134 222 Ram . | . . . . . . . . . . . . . . . . . . . . . . . . . Kick . | . . . . . . . . . . . . . . . . . . . . . . . . . Crush 2 | . . . . . . . . . . . . . . . . . . . . . . . 1 1 Escape Stasis 2 | . . . . . . . . . . . . . . . . . 2 . . . . . . . Rewire 148 | . . . . 25 . . . 40 . 39 . . . . . 5 28 . . 1 . . 3 7 Trap . | . . . . . . . . . . . . . . . . . . . . . . . . . Miscellaneous 11 | . . . . . . . . . . 1 1 . . . . . 4 . . 3 . . 1 1 Route ------- -11/Scrapyard -10/Materials (discovered 2 exits: [*Mat] / [*Min]) -10/Mines (discovered 2 exits: [*Mat] / *Sub) -10/Subcaves (discovered 3 exits: [*Mat x2] / *Rec) -9/Recycling (discovered 2 exits: [*Fac] / *Scr) -9/Scraptown (discovered 2 exits: *Fac x2) -6/Factory (discovered 4 exits: *Fac x2 / *Low x2) -6/Lower Caves -6/Lower Caves (discovered 2 exits: *Fac / *Zio) -6/Zion -5/Proximity Caves -5/Factory (discovered 3 exits: Fac / *Upp x2) -5/Upper Caves -5/Upper Caves -5/Zhirov -4/Proximity Caves -4/Factory (discovered 3 exits: Res / Upp / *Ext) -4/Extension (discovered 2 exits: *Res / *Cet) -4/Cetus (discovered 2 exits: *Res / *Arc) -4/Archives (discovered 3 exits: *Res / *Hub x2) -4/Hub_04(d) -3/Research (discovered 2 exits: Res / *Qua) -3/Quarantine -2/Research (discovered 3 exits: *Acc x3) -1/Access To Epsilon Eridani History --------- Turn | Location | Event 20 | -11/Scrapyard | Discovered new exit (range 16) 80 | -11/Scrapyard | Entered Materials 135 | -10/Materials | Central database locked down 242 | -10/Materials | Discovered new exit (range 12) 242 | -10/Materials | Discovered new exit (range 12) 264 | -10/Materials | Entered Mines 325 | -10/Mines | Build established: Mutant 397 | -10/Mines | Received a Rocket Launcher from a helpful Derelict 567 | -10/Mines | A weapon hastily lodged in a ceiling crevice suddenly fell to the ground 586 | -10/Mines | Discovered new exit (range 6) 941 | -10/Mines | Discovered new exit (range 6) 946 | -10/Mines | Entered Subcaves 947 | -10/Subcaves | Identified exit to Recycling 1008 | -10/Subcaves | Disturbed a concealed Subdweller 1409 | -10/Subcaves | Shifting Twisted Machinery released Flamer 1573 | -10/Subcaves | Learned 2 Materials zone layouts 2058 | -10/Subcaves | Visited triangular shrine 2068 | -10/Subcaves | Found Prototype Device 2068 | -10/Subcaves | Identified V3-11A's Pendant 2073 | -10/Subcaves | Befriended Subdweller 2091 | -10/Subcaves | A swath of the cavern ceiling suddenly collapsed 2259 | -10/Subcaves | Learned location of Zion (-6) 2259 | -10/Subcaves | Met a Zionite searching for "candidates" 2271 | -10/Subcaves | Discovered new exit (range 10) 2273 | -10/Subcaves | Shifting Twisted Machinery released Sub. Power Source 2281 | -10/Subcaves | Shifting Twisted Machinery released Flamer 2527 | -10/Subcaves | Ambushed by Subdweller buried in earth 2527 | -10/Subcaves | Ambushed by Subdweller buried in earth 2528 | -10/Subcaves | Befriended Subdweller 2528 | -10/Subcaves | Befriended Subdweller 2528 | -10/Subcaves | Befriended Subdweller 2867 | -10/Subcaves | Learned 2 Materials zone layouts 3035 | -10/Subcaves | A swath of the cavern ceiling suddenly collapsed 3046 | -10/Subcaves | A Subdweller sparked back to life 3046 | -10/Subcaves | A Subdweller sparked back to life 3046 | -10/Subcaves | A Subdweller sparked back to life 3048 | -10/Subcaves | Befriended Subdweller 3048 | -10/Subcaves | Befriended Subdweller 3048 | -10/Subcaves | Befriended Subdweller 3091 | -10/Subcaves | Discovered new exit (range 8) 3447 | -10/Subcaves | Core integrity fell below 50% 3448 | -10/Subcaves | Befriended Subdweller 3470 | -10/Subcaves | Disturbed a concealed Subdweller 3473 | -10/Subcaves | Befriended Subdweller 3583 | -10/Subcaves | Befriended Subdweller 3963 | -10/Subcaves | Shifting Twisted Machinery released Mak. Flight Unit 3966 | -10/Subcaves | Shifting Twisted Machinery released Mak. System Restoration Module 4001 | -10/Subcaves | Found Prototype Leg 4024 | -10/Subcaves | Lost 3 allies 4084 | -10/Subcaves | Disturbed a concealed Subdweller 4086 | -10/Subcaves | Core integrity fell below 20% 4088 | -10/Subcaves | Befriended Subdweller 4220 | -10/Subcaves | Entered Recycling 4220 | -9/Recycling | Accompanied by 6 allies 4406 | -9/Recycling | Discovered new exit (range 8) 4861 | -9/Recycling | Scanned before Scraplab entrance 5218 | -9/Recycling | Entered Scraplab 5236 | -9/Recycling | Discovered new exit (range 3) 5252 | -9/Recycling | Entered Scraptown 5252 | -9/Scraptown | Accompanied by 8 allies 5278 | -9/Scraptown | Heard Great Nut preacher, LISTEN AND RECITE! 5401 | -9/Scraptown | Delivered V3-11A's Pendant to T0-NE2 in exchange for information 5461 | -9/Scraptown | Visited Comm Corps 5561 | -9/Scraptown | Visited Fellowship of the Rings 5648 | -9/Scraptown | Discovered new exit (range 11) 5956 | -9/Scraptown | Visited CPS Storage 6201 | -9/Scraptown | Visited Assassins FH 6256 | -9/Scraptown | Visited Science Testing Area 6345 | -9/Scraptown | Visited Symbiants 6363 | -9/Scraptown | Visited Awakened 6652 | -9/Scraptown | Visited UFD Registry 6652 | -9/Scraptown | Registered with UFD as "Shadowwalker" 6709 | -9/Scraptown | Visited Modified Component R&D 6770 | -9/Scraptown | Visited Science Guys 6839 | -9/Scraptown | Visited Derelict Rescue Squad 6881 | -9/Scraptown | Visited A0-MCA Data Center 6895 | -9/Scraptown | Visited Sword Containment 6962 | -9/Scraptown | Visited Analyses Database 7081 | -9/Scraptown | Delivered Scrap Shield to a Scientist 7237 | -9/Scraptown | Visited Supply Room 7283 | -9/Scraptown | Visited Curators Association 7329 | -9/Scraptown | Visited Junk Repository 7465 | -9/Scraptown | Given a B- rating by A0-MCA 7469 | -9/Scraptown | Found A0-MCA's Component Scanner 7530 | -9/Scraptown | Visited Botcube Research 7550 | -9/Scraptown | Found Botcube 7985 | -9/Scraptown | Discovered new exit (range 5) 8362 | -9/Scraptown | Scanned Subdweller tech in exchange for log data 8365 | -9/Scraptown | Learned Research stockpile data 8367 | -9/Scraptown | Learned location of Armory (-3) 8368 | -9/Scraptown | Learned Research terminal intel 8370 | -9/Scraptown | Learned location of 1 exit from Factory 8371 | -9/Scraptown | Learned location of 1 exit from Research 9220 | -9/Scraptown | Found DRS Beacon 10681 | -9/Scraptown | Found Scrap Suit 13032 | -9/Scraptown | Botcube activated 13054 | -9/Scraptown | Botcube completed mutation into treaded form, armed with 1 gun, 1 cannon. 13331 | -9/Scraptown | Build established: Commander-Mutant 13456 | -9/Scraptown | Entered Factory 13456 | -6/Factory | Accompanied by 6 allies 13456 | -6/Factory | Evolved 8 slots: Propulsion x3, Utility x5 13456 | -6/Factory | Identified Arachnoskeleton 13457 | -6/Factory | Identified exit to Factory 13457 | -6/Factory | Attached Arachnoskeleton, gained temporary slots: Propulsion x3 13527 | -6/Factory | Repaired Force Booster 13634 | -6/Factory | Lost 3 allies 13641 | -6/Factory | Found Botcube 13660 | -6/Factory | Botcube activated 13674 | -6/Factory | Botcube completed mutation into wheeled form (unarmed). 13760 | -6/Factory | Build established: Scavenger-Mutant 13810 | -6/Factory | P-60 Hacker assimilated allied Savior 2a 14104 | -6/Factory | Found Hvy. Reflective Plating 14508 | -6/Factory | Build established: Mutant 14896 | -6/Factory | Identified exit to Lower Caves 15105 | -6/Factory | Discovered exit to Factory (range 12) 15178 | -6/Factory | Entered Lower Caves 15178 | -6/Lower Caves | Accompanied by 1 ally 15180 | -6/Lower Caves | UFD Scientist delivered a prototype 15180 | -6/Lower Caves | Ambushed by wild Derelicts 15236 | -6/Lower Caves | Found Prototype Protection 15236 | -6/Lower Caves | Identified Enh. Scrap Shield 15447 | -6/Lower Caves | Spotted B-75 Beast 15544 | -6/Lower Caves | Discovered new exit (range 13) 15674 | -6/Lower Caves | Identified exit to Lower Caves 15675 | -6/Lower Caves | Entered another Lower Caves area 15764 | -6/Lower Caves | Prototype Device suddenly appears! 15769 | -6/Lower Caves | Discovered exit to Factory (range 19) 15780 | -6/Lower Caves | Found Prototype Device 15780 | -6/Lower Caves | Identified Amulet of Y3-NDR 15799 | -6/Lower Caves | Joined by bewildered Wizard 15800 | -6/Lower Caves | Joined by bewildered Wizard 15803 | -6/Lower Caves | Joined by bewildered Wizard 15804 | -6/Lower Caves | Joined by bewildered Wizard 15852 | -6/Lower Caves | Joined by bewildered Wizard 15853 | -6/Lower Caves | Joined by bewildered Wizard 16076 | -6/Lower Caves | Spotted B-75 Beast 16155 | -6/Lower Caves | Identified exit to Zion 16191 | -6/Lower Caves | Build established: Scavenger-Mutant 16250 | -6/Lower Caves | Learned 4 Factory zone layouts 16391 | -6/Lower Caves | Entered Zion 16391 | -6/Zion | Accompanied by 3 allies 16495 | -6/Zion | Discovered new exit (range 15) 16605 | -6/Zion | System corruption cleaned by Quarantine Array 16727 | -6/Zion | Acquired unknown access codes intercepted by a Zionite 16999 | -6/Zion | Given A8's code to call for help 17136 | -6/Zion | Found CR-A16's Pointy Stick 17279 | -6/Zion | Turned away by Imprinter 17439 | -6/Zion | Build established: Mutant 17487 | -6/Zion | Found Prototype Processor 17487 | -6/Zion | Identified Spectral Analyzer 17706 | -6/Zion | Found Prototype Processor 17706 | -6/Zion | Identified Exp. Melee Analysis Suite 17714 | -6/Zion | Found Prototype Processor 17714 | -6/Zion | Identified Exp. Target Analyzer 18134 | -6/Zion | Found Exp. Melee Analysis Suite 18144 | -6/Zion | Found Prototype Hackware 18307 | -6/Zion | Found Rocket Array 18319 | -6/Zion | Found Prototype Launcher 18319 | -6/Zion | Identified Gui. Missile Launcher 18584 | -6/Zion | Entered Proximity Caves 18584 | -5/Proximity Caves | Accompanied by 3 allies 18624 | -5/Proximity Caves | Activated DRS Beacon 18643 | -5/Proximity Caves | Joined by bewildered Wizard 18644 | -5/Proximity Caves | Joined by bewildered Wizard 18644 | -5/Proximity Caves | Joined by bewildered Wizard 18655 | -5/Proximity Caves | Spotter reported a threat 18721 | -5/Proximity Caves | Attracted the attention of an 0b10 outpost 18857 | -5/Proximity Caves | Joined by bewildered Wizard 18858 | -5/Proximity Caves | Joined by bewildered Wizard 19021 | -5/Proximity Caves | Discovered exit to Factory (range 11) 19058 | -5/Proximity Caves | Learned location of 1 exit from Factory 19060 | -5/Proximity Caves | Learned Factory security intel 19286 | -5/Proximity Caves | System corruption reached 10% 19286 | -5/Proximity Caves | Entered Factory 19286 | -5/Factory | Accompanied by 7 allies 19286 | -5/Factory | Evolved 2 slots: Utility x2 19287 | -5/Factory | Identified exit to Upper Caves 19288 | -5/Factory | Identified exit to Factory 19297 | -5/Factory | Identified Exp. Hacking Suite 19803 | -5/Factory | Lost 6 allies 19856 | -5/Factory | Build established: Scavenger-Mutant 19861 | -5/Factory | Joined by bewildered Wizard 19861 | -5/Factory | Joined by bewildered Wizard 19920 | -5/Factory | Entered Upper Caves 19920 | -5/Upper Caves | Accompanied by 1 ally 20124 | -5/Upper Caves | Joined by bewildered Wizard 20124 | -5/Upper Caves | Joined by bewildered Wizard 20128 | -5/Upper Caves | Joined by bewildered Wizard 20131 | -5/Upper Caves | Joined by bewildered Wizard 20160 | -5/Upper Caves | Build established: Mutant 20405 | -5/Upper Caves | Encountered a Warlord checkpoint 20579 | -5/Upper Caves | Spotted B-75 Beast 20591 | -5/Upper Caves | Allies destroyed B-75 Beast 20605 | -5/Upper Caves | Joined by bewildered Wizard 20700 | -5/Upper Caves | Discovered new exit (range 15) 20715 | -5/Upper Caves | Attracted the attention of an 0b10 checkpoint 20715 | -5/Upper Caves | Identified exit to Upper Caves 20716 | -5/Upper Caves | Entered another Upper Caves area 20716 | -5/Upper Caves | Accompanied by 4 allies 20806 | -5/Upper Caves | Joined by bewildered Wizard 20808 | -5/Upper Caves | Joined by bewildered Wizard 21225 | -5/Upper Caves | Learned location of 2 exits from Factory 21244 | -5/Upper Caves | Discovered new exit (range 10) 21252 | -5/Upper Caves | Identified exit to Zhirov 21261 | -5/Upper Caves | Entered Zhirov 21261 | -5/Zhirov | Accompanied by 4 allies 21261 | -5/Zhirov | Discovered new exit (range 3) 21281 | -5/Zhirov | Met Zhirov 21302 | -5/Zhirov | Learned location of Quarantine (-3) 21312 | -5/Zhirov | Zhirov requested help retrieving the SGEMP Prototype 21329 | -5/Zhirov | Found Alien Artifact 21329 | -5/Zhirov | Identified Integrated Dissipator 21329 | -5/Zhirov | Installed Integrated Dissipator, increased core heat dissipation (+20) 21483 | -5/Zhirov | Found Alien Artifact 21533 | -5/Zhirov | Identified exit to Proximity Caves 21534 | -5/Zhirov | Entered Proximity Caves 21534 | -4/Proximity Caves | Accompanied by 4 allies 21552 | -4/Proximity Caves | Learned Research emergency access door positions 21640 | -4/Proximity Caves | Lost 3 allies 21650 | -4/Proximity Caves | Joined by bewildered Wizard 21651 | -4/Proximity Caves | Joined by bewildered Wizard 21737 | -4/Proximity Caves | Joined by bewildered Wizard 21743 | -4/Proximity Caves | Received a Behemoth hack from an annoying Tinkerer 22244 | -4/Proximity Caves | Attracted the attention of an 0b10 checkpoint 22254 | -4/Proximity Caves | Joined by bewildered Wizard 22255 | -4/Proximity Caves | Joined by bewildered Wizard 22287 | -4/Proximity Caves | Discovered exit to Factory (range 10) 22463 | -4/Proximity Caves | Entered Factory 22463 | -4/Factory | Accompanied by 4 allies 22463 | -4/Factory | Evolved 2 slots: Power x1, Utility x1 22464 | -4/Factory | Identified exit to Upper Caves 22464 | -4/Factory | Identified exit to Research 22499 | -4/Factory | Garrison activated, responded to threat 22599 | -4/Factory | Joined by bewildered Wizard 22611 | -4/Factory | Repaired Adv. Sensor Array 22765 | -4/Factory | Build established: Hacker-Mutant 23062 | -4/Factory | Joined by bewildered Wizard 23067 | -4/Factory | Joined by bewildered Wizard 23130 | -4/Factory | Fabricated Lgt. Quantum Reactor? 23225 | -4/Factory | Lost 3 allies 23334 | -4/Factory | Joined by bewildered Wizard 23334 | -4/Factory | Joined by bewildered Wizard 23336 | -4/Factory | Joined by bewildered Wizard 23344 | -4/Factory | Joined by bewildered Wizard 23345 | -4/Factory | Joined by bewildered Wizard 23352 | -4/Factory | Joined by bewildered Wizard 23490 | -4/Factory | Discovered new exit (range 14) 23605 | -4/Factory | Joined by bewildered Wizard 23671 | -4/Factory | Lost 5 allies 23932 | -4/Factory | Identified exit to Extension 23933 | -4/Factory | Entered Extension 24125 | -4/Extension | Rescued a captive Derelict 24729 | -4/Extension | Rescued a captive Derelict 24730 | -4/Extension | Rescued a captive Derelict 24753 | -4/Extension | Rescued A7 25163 | -4/Extension | Spotted B-86 Titan 25179 | -4/Extension | Allies destroyed B-86 Titan 25232 | -4/Extension | Spotted B-86 Titan 25233 | -4/Extension | Disrupted transfer network 25233 | -4/Extension | Allies destroyed B-86 Titan 25435 | -4/Extension | Discovered new exit (range 15) 25436 | -4/Extension | Discovered exit to Research (range 15) 25489 | -4/Extension | Rescued a captive Derelict 25501 | -4/Extension | Rescued a captive Derelict 25506 | -4/Extension | Rescued a captive Derelict 25588 | -4/Extension | Lost 4 allies 25675 | -4/Extension | Identified exit to Cetus 25683 | -4/Extension | First assault squad dispatched 25683 | -4/Extension | Entered Cetus 25683 | -4/Cetus | Accompanied by 6 allies (A7) 25688 | -4/Cetus | Acquired a Cetus Manufacturing Module code from A7 25701 | -4/Cetus | Spotted Cetus Guard 25701 | -4/Cetus | Spotted Cetus Guard 25704 | -4/Cetus | Spotted Cetus Guard 25705 | -4/Cetus | Spotted Cetus Guard 25706 | -4/Cetus | Allies destroyed Cetus Guard 25712 | -4/Cetus | Allies destroyed Cetus Guard 25724 | -4/Cetus | Allies destroyed Cetus Guard 25810 | -4/Cetus | Escorted A7 to Cetus Mainframe 25819 | -4/Cetus | Started Cetus Manufacturing Module 25844 | -4/Cetus | Manufactured an Enhanced Grunt 25869 | -4/Cetus | Manufactured an Enhanced Grunt 25894 | -4/Cetus | Manufactured an Enhanced Grunt 25919 | -4/Cetus | Manufactured an Enhanced Grunt 25944 | -4/Cetus | Manufactured an Enhanced Grunt 25972 | -4/Cetus | Discovered new exit (range 16) 25992 | -4/Cetus | Spotted Cetus Guard 25992 | -4/Cetus | Spotted Cetus Guard 25994 | -4/Cetus | Spotted Cetus Guard 25994 | -4/Cetus | Spotted Cetus Guard 26001 | -4/Cetus | Discovered exit to Research (range 16) 26008 | -4/Cetus | Destroyed Cetus Guard 26013 | -4/Cetus | Allies destroyed Cetus Guard 26013 | -4/Cetus | Allies destroyed Cetus Guard 26014 | -4/Cetus | Met Revision 17 26079 | -4/Cetus | Identified exit to Archives 26091 | -4/Cetus | Entered Archives 26091 | -4/Archives | Accompanied by 10 allies (A7) 26096 | -4/Archives | Received a hacking code to weaken MAIN.C 26168 | -4/Archives | Discovered new exit (range 16) 26185 | -4/Archives | Discovered exit to Research (range 14) 26225 | -4/Archives | Build established: Commander-Mutant 26353 | -4/Archives | Discovered new exit (range 14) 26677 | -4/Archives | Identified exit to Hub_04(d) 26684 | -4/Archives | Entered Hub_04(d) 26684 | -4/Hub_04(d) | Accompanied by 8 allies 26856 | -4/Hub_04(d) | Build established: Scavenger-Mutant 27232 | -4/Hub_04(d) | P-70 Sage assimilated allied 1D-UDA(g) 27661 | -4/Hub_04(d) | Discovered exit to Research (range 2) 27967 | -4/Hub_04(d) | First assault squad dispatched 28143 | -4/Hub_04(d) | Entered Research 28143 | -3/Research | Evolved 2 slots: Utility x2 28144 | -3/Research | Forged Quantum Companion 28144 | -3/Research | Identified exit to Research 28147 | -3/Research | Loaded intel: 23 terminal locations 28342 | -3/Research | Joined by bewildered Wizard 28343 | -3/Research | Revision forces began assault on 0b10 28350 | -3/Research | Joined by bewildered Wizard 28352 | -3/Research | Met up with Revision 17++ 28389 | -3/Research | Joined by bewildered Wizard 28389 | -3/Research | Joined by bewildered Wizard 28403 | -3/Research | Lost 3 allies 28437 | -3/Research | Build established: Scavenger-Assassin 28489 | -3/Research | Discovered new exit (range 7) 28495 | -3/Research | Identified exit to Quarantine 28710 | -3/Research | Joined by bewildered Wizard 28710 | -3/Research | Joined by bewildered Wizard 28717 | -3/Research | Lost 4 allies 28819 | -3/Research | Entered Quarantine 28819 | -3/Quarantine | Accompanied by 2 allies 29033 | -3/Quarantine | Lost 3 allies 29296 | -3/Quarantine | Crushed by falling debris 29321 | -3/Quarantine | Found Prototype Device 29321 | -3/Quarantine | Identified Adv. EM Disruption Field 29358 | -3/Quarantine | Identified Transdimensional Reconstructor 29358 | -3/Quarantine | Warped through subspace 29431 | -3/Quarantine | Found Alien Artifact 29431 | -3/Quarantine | Identified Phase Armor 29508 | -3/Quarantine | Scanned by Researcher 29526 | -3/Quarantine | Found Alien Artifact 29534 | -3/Quarantine | Found Alien Artifact 29545 | -3/Quarantine | Found Alien Artifact 29549 | -3/Quarantine | Found Alien Artifact 29591 | -3/Quarantine | Build established: Scavenger-Mutant 29761 | -3/Quarantine | Found Transdimensional Reconstructor 29874 | -3/Quarantine | Discovered exit to Research (range 8) 30086 | -3/Quarantine | Found Alien Artifact 30086 | -3/Quarantine | Identified Phase Redirector 30265 | -3/Quarantine | Found Prototype Device 30265 | -3/Quarantine | Identified Exp. Thermal Shield 30325 | -3/Quarantine | Entered Research 30325 | -2/Research | Evolved 2 slots: Power x2 30325 | -2/Research | Spotted B-90 Cyclops 30327 | -2/Research | Build established: Hacker-Assassin 30643 | -2/Research | Identified exit to DSF 30710 | -2/Research | Identified Hpw. Transdimensional Reconstructor (x3) 30710 | -2/Research | Warped through subspace 30710 | -2/Research | Discovered new exit (range 15) 30744 | -2/Research | Identified exit to Access 30745 | -2/Research | Warped through subspace 30797 | -2/Research | Joined by bewildered Wizard 30800 | -2/Research | Joined by bewildered Wizard 30800 | -2/Research | Joined by bewildered Wizard 30801 | -2/Research | Joined by bewildered Wizard 30828 | -2/Research | Joined by bewildered Wizard 30828 | -2/Research | Joined by bewildered Wizard 30895 | -2/Research | Warped through subspace 31017 | -2/Research | Build established: Generator-Mutant 31046 | -2/Research | Warped through subspace 31071 | -2/Research | Core integrity fell below 50% 31175 | -2/Research | Spotted B-90 Cyclops 31405 | -2/Research | Build established: Generator-Assassin 31629 | -2/Research | Fabricated Enh. Armored Medium Treads? 31709 | -2/Research | Core integrity fell below 20% 31758 | -2/Research | Cargo convoy interrupted 31825 | -2/Research | First assault squad dispatched 31913 | -2/Research | Found Prototype Reactor 31916 | -2/Research | Found Prototype Hackware 31926 | -2/Research | Entered Access 31926 | -1/Access | Evolved 2 slots: Utility x2 31928 | -1/Access | Identified Exp. System Shield 31931 | -1/Access | Identified Singularity Reactor 32698 | -1/Access | Build established: Generator-Mutant 32703 | -1/Access | System corruption reached 10% 32926 | -1/Access | First assault squad dispatched 32984 | -1/Access | Identified exit to Surface 33099 | -1/Access | Destroyed 7 combat bots 33320 | -1/Access | Destroyed 7 combat bots 33349 | -1/Access | System corruption reached 30% 33411 | -1/Access | Lost 10 parts (5p3n2u) 33423 | -1/Access | Found Hvy. Reflective Plating 33738 | -1/Access | Energy Cycler disabled 33834 | -1/Access | Lost 5 parts (3n2u) 34040 | -1/Access | Spotted B-99 Colossus 34196 | -1/Access | Build established: Scavenger-Mutant 34207 | *** | Escaped! Last Messages --------------- 34156_ Acquired 6 matter. Quantum Companion releases a shadow of itself that zips off towards I-47 Archangel. 34160_ R-10 Processor collects Wheel. Quantum Companion: "Let's fight that Protector!" The surroundings shift and blur. 34160_ Destroyed Point Defense System. The surroundings shift and blur. 34168_ KKSQYUZJJ VGFKEX6#2 34203_ M-36 Artificer unfolds itself. [Achievement: Superachiever] Map ----- +----------------------------------------------------+ | #????# #??????????????##= %## #""" #????? | | #????# #????#######???##%% ## # """ #????? | | #???## #????# ##### !%%# # " #????? | | #???#" ###### !!=##+##+## #????? | | #???#" % %== =%!! ## #????? | | #???#####%### !! *## ## #????? | | #???????#%#?#!=%[ #####% % ## ###########????? | | ????????# #?###%###???####"### #??????????????? | | ????????# #??##/########?###?# #??????????????? | | ????????# #?## """"" #?????# #########??????? | | ######### #### "" "" ####??# +???????? | | ^^=%=%% # # #??#[ #???????????? | | ^^%[ %+ #######!= #???????????? | | ########### #% = / % #???????????? | | ??#####???# %/% # ############???????????? | | ??????????# # % # #??????????????????????? | | ??????????#% #* ####??????????????????????? | | ??????????# %# ##########????????????????????????? | | ??????????#% # # #####???????????????????????????? | | ??????????# ####### ##########????????###???????? | | ?????????## """T""" "??????? #???????? | | ?????????## % "" "????? #???????? | | ??????????#% % "???? ###+##### | | ??????????#% % % """" | | ??????????# %% "" "" | | ??????????# @%= "" | | ??????????# """??? | | ??????????# g %"????BB? ###+##### | | ??????????#Amgg "????BB??? #???????? | | ??????????# %%g "??????????????????? | | ??????????# ####### ##########??????????????????? | | ??????????# %#????####???????????????????????????? | | #########?# ##############??????????????????????? | | # #%*!! #??????????????????????? | | # #% #??????????????????????? | | """ + %+ %""G"" #??????????????????????? | | "R"" # %# " " #??????????????????????? | | " "" #%*#=]%" " #??????????????????????? | | ?# %#%!!% #??????????????????????? | | = ?# #| =!! #??????????????????????? | | ??# # ![ #??????????????????????? | | ??# # #??????????????????????? | | ???# # #??????????????????????? | | ???# # #??????????????????????? | | ######????# # #??????????????????????? | | ??????????# ##############??????????????????????? | | ?????????? #???? ?????????????????????????????? | | ?????????? #???? ?????????????????????????????? | | ?????????? #????"""????????????????????????????? | | ?????????? #????""Y????????????????????????????? | +----------------------------------------------------+ Best States ------------- Heat Dissipation 72 Energy Generation 133 Energy Capacity 1940 Matter Stores 500 Matter Capacity 500 Sight Range 22 Robot Scan Range 16 Terrain Scan Density 10 Jamming Range 16 Cloak Strength 3 Power Amplification 60 Corruption Containment 16 Corruption Block 13 Armor Coverage 1025 Resistance: KI 20 Resistance: TH 25 Resistance: EM 50 Weapon Shielding 90 Melee Speed Boost 50 Evasion (%) 67 Melee Accuracy 20 Target Analysis 12 Recoil Reduction 5 Force Boost 20 Offensive Hacking 30 Defensive Hacking 30 Item Schematics ----------------- Huge Storage Unit | -10/Materials | Hacked Med. Reflective Plating | -9/Recycling | Hacked Corruption Screen | -9/Recycling | Hacked Adv. Melee Analysis Suite | -6/Factory | Scanalyzed Imp. Reaction Control System | -6/Factory | Hacked Med. Armored Exoskeleton | -5/Factory | Hacked Assault Drone Bay | -5/Zhirov | Free Exp. Heat Sink | -5/Zhirov | Free Exp. Optical Array | -5/Zhirov | Free Imp. Arc Thrower | -5/Zhirov | Free Centrium Leg | -4/Extension | Hacked Hvy. Armored Exoskeleton | -4/Extension | Hacked Quantum Reactor | -4/Extension | Hacked Lrn. Sensor Array | -4/Extension | Hacked Enh. Armored Medium Treads | -3/Quarantine | Archive Adv. Variable Charge Gun | -3/Quarantine | Archive Lrn. Phase Cannon | -3/Quarantine | Archive Lgt. Antimatter Cannon | -3/Quarantine | Archive Hvy. Tesla Rifle | -3/Quarantine | Archive Adv. Energy Well | -3/Quarantine | Archive Exp. Signal Interpreter | -3/Quarantine | Archive Exp. Hacking Suite | -3/Quarantine | Archive Robot Schematics ------------------ K-01 Serf | -3/Quarantine | Archive G-67 Veteran | -3/Quarantine | Archive Fabricated ------------ Lgt. Quantum Reactor | x2 | -4/Factory | Preloaded Enh. Armored Medium Treads | x1 | -2/Research Alien Tech Used ----------------- Integrated Dissipator Transdimensional Reconstructor Phase Armor Phase Redirector High-powered Transdimensional Reconstructor Achievements -------------- Revolutionary Research Superachiever Challenges ------------ None Game ------ Seed MyomerWeightLegs Manual? 0 Play Time 07:49:07 Cumulative 365.6 hours Start 2024.10.04 @ 18:56:14 End 2024.10.06 @ 21:38:13 Sessions 5 Manual Loads 0 Difficulty Rogue Special Mode None Game No. 120 Rogue 118 Adventurer 0 Explorer 2 Win Type 0 Total 9 Types 7/0/1/1/0/0/0/0/0 Lore% 75 Gallery% 82 Achievement% 75 Wizard Run 0 Options --------- Layout 2 ASCII 0 Keyboard 1 Movement Numpad Keybinds 0 Fullscreen 1 Font 24/Smallcaps Map View 50x44 Zoom Use 0% Tactical HUD 1 Map Filters NONE Filters NONE Steam 0 RUN: 3747ce30-d33d-4d4c-b49c-16e4e3b0bb36